fUST/lending_fUST_20260701
["ID","MTS","AMOUNT","RATE_DAILY","PERIOD"]
[426819648,1782894638000,-343.66694024,0.00026545,2]
[426819640,1782894638000,-329.24415742,0.00022288,2]
[426819641,1782894638000,-500.0,0.00022288,2]
[426819635,1782894638000,-500.0,0.00022288,2]
[426819633,1782894638000,-500.0,0.00022288,2]
[426819632,1782894638000,-500.0,0.00022288,2]
[426819627,1782894638000,-500.0,0.00022288,2]
[426819637,1782894638000,-500.0,0.00022288,2]
[426819636,1782894638000,-500.0,0.00022288,2]
[426819638,1782894638000,-500.0,0.00022288,2]
[426819634,1782894638000,-500.0,0.00022288,2]
[426819639,1782894638000,-500.0,0.00022288,2]
[426819660,1782894640000,-152.0,0.00028627,7]
[426819659,1782894640000,-110.08656247,0.00028627,7]
[426819661,1782894640000,-152.0,0.00028627,7]
[426819662,1782894640000,-152.0,0.00028627,7]
[426819663,1782894640000,-153.76546726,0.00028627,7]
[426819666,1782894640000,-186.0,0.00028709,2]
[426819664,1782894640000,-178.67235934,0.00028627,7]
[426819669,1782894640000,-364.124706,0.00028717,2]
[426819668,1782894640000,-364.32593772,0.00028717,2]
[426819672,1782894640000,-5608.17145209,0.00029,7]
[426819670,1782894640000,-107.04127328,0.00028717,2]
[426819671,1782894640000,-154.58727463,0.000289,2]
[426819665,1782894640000,-446.0,0.00028709,2]
[426819667,1782894640000,-1422.0,0.00028709,2]
[426819735,1782894650000,-304.0,0.00029,7]
[426819729,1782894650000,-289.21213238,0.00029,7]
[426819718,1782894650000,-97.9380873,0.00029,7]
[426819706,1782894650000,-256.44227444,0.00029,7]
[426819769,1782894804000,781.37609644,0.00029238,120]
[426819770,1782894878000,3993.6980512,0.00029238,120]
[426819771,1782894910000,18802.87,0.000301,30]
[426819794,1782895832000,-414.29400401,0.00024465,2]
[426819793,1782895832000,-588.97716037,0.00024465,2]
[426819813,1782895841000,-113.21955803,0.00024465,2]
[426819822,1782895841000,-500.0,0.00026519,2]
[426819814,1782895841000,-2415.6829794,0.00024712,2]
[426819817,1782895841000,-158.44,0.00025528,2]
[426819821,1782895841000,-500.0,0.00026519,2]
[426819824,1782895841000,-500.0,0.00026519,2]
[426819825,1782895841000,-306.22732699,0.00026519,2]
[426819818,1782895841000,-581.13620112,0.00026519,2]
[426819820,1782895841000,-500.0,0.00026519,2]
[426819819,1782895841000,-500.0,0.00026519,2]
[426819827,1782895841000,-779.73233986,0.0002652,2]
[426819829,1782895841000,-711.02963482,0.0002652,2]
[426819816,1782895841000,-190.56,0.00025094,2]
[426819834,1782895842000,-572.03708966,0.0002652,2]
[426819857,1782895846000,-103.12410195,0.0002652,2]
[426819859,1782895846000,-1528.5766036,0.0002652,2]
[426819865,1782895846000,-635.18063952,0.0002652,2]
[426819875,1782895846000,-150.63996176,0.00027397,27]
[426819878,1782895846000,-299.76207602,0.00027916,2]
[426819867,1782895846000,-629.53030242,0.0002652,2]
[426819880,1782895846000,-532.91035736,0.00027916,2]
[426819869,1782895846000,-1119.16498208,0.0002652,2]
[426819884,1782895846000,-17.11144671,0.00028,2]
[426819871,1782895846000,-1746.94658921,0.0002652,2]
[426819873,1782895846000,-414.650238,0.0002679,2]
[426819882,1782895846000,-831.83976094,0.00027916,2]
[426819944,1782896044000,10720.5522456,0.0001,2]
[426819945,1782896105000,2171.28031551,0.0001,2]
[426819947,1782896193000,215.17387927,0.0001,2]
[426819948,1782896243000,580.65901212,0.00015,2]
[426819949,1782896245000,292.36871129,0.00015,2]
[426819959,1782896969000,-859.36445345,0.00018,2]
[426819958,1782896969000,-156.262,0.000179,2]
[426820038,1782897043000,-205.44,0.00025883,2]
[426820036,1782897043000,-176.3863409,0.00018,2]
[426820035,1782897043000,-179.01838988,0.0001782,2]
[426820037,1782897043000,-4263.50024375,0.00018,2]
[426820041,1782897043000,-289.798485,0.0002766,2]
[426820046,1782897043000,-3635.99301359,0.0002831,2]
[426820039,1782897043000,-161.0,0.00026,5]
[426820042,1782897043000,-152.05968505,0.00027944,2]
[426820040,1782897043000,-175.90330783,0.00027512,2]
[426820044,1782897043000,-871.15669429,0.0002831,2]
[426820043,1782897043000,-372.0,0.00028,2]
[426820069,1782897047000,-488.96155151,0.0002896,2]
[426820070,1782897047000,-13120.86481691,0.00029,2]
[426820068,1782897047000,-1071.93711267,0.0002896,2]
[426820066,1782897047000,-602.96462588,0.0002896,2]
[426820065,1782897047000,-334.98034771,0.0002896,2]
[426820064,1782897047000,-275.04087272,0.0002896,2]
[426820061,1782897047000,-1844.0,0.00028597,2]
[426820067,1782897047000,-262.45451812,0.0002896,2]
[426820062,1782897047000,-1422.0,0.00028597,2]
[426820063,1782897047000,-152.80048485,0.0002896,2]
[426820060,1782897047000,-2491.90181941,0.0002831,2]
[426820071,1782897296000,149999.4,0.00029237,30]
[426820072,1782897308000,200000.0,0.00029237,30]
[426820079,1782898029000,198.85636814,0.0002924,120]
[426820081,1782898198000,20005.35,0.0003013,30]
[426820107,1782898232000,-534.721342,0.00020177,2]
[426820106,1782898232000,-787.69673652,0.00020177,2]
[426820104,1782898232000,-251.73999203,0.00019975,2]
[426820105,1782898232000,-362.29309837,0.00020177,2]
[426820102,1782898232000,-1664.05470599,0.00019975,2]
[426820103,1782898232000,-2240.95754481,0.00019975,2]
[426820156,1782898238000,-75.70145493,0.00020799,2]
[426820153,1782898238000,-2498.87050619,0.00020177,2]
[426820154,1782898238000,-151.0,0.00020381,2]
[426820163,1782898238000,-311.80303633,0.000208,2]
[426820160,1782898238000,-500.0,0.000208,2]
[426820158,1782898238000,-224.29854507,0.00020799,2]
[426820167,1782898238000,-763.23842181,0.0002555,2]
[426820162,1782898238000,-500.0,0.000208,2]
[426820165,1782898238000,-1673.22683681,0.0002555,2]
[426820179,1782898238000,-227.372609,0.00027777,2]
[426820175,1782898238000,-161.69326435,0.00027397,7]
[426820170,1782898238000,-1176.9167541,0.00026724,2]
[426820174,1782898238000,-230.32,0.00027279,3]
[426820172,1782898238000,-251.95618108,0.0002693,2]
[426820182,1782898238000,-161.0613391,0.00028,2]
[426820191,1782898238000,-367.0,0.00028,2]
[426820185,1782898238000,-6.9386609,0.00028,2]
[426820189,1782898238000,-167.0,0.00028,2]
[426820187,1782898238000,-168.0,0.00028,2]
[426820168,1782898238000,-292.7555246,0.00026025,2]
[426820219,1782898239000,-500.0,0.00028395,2]
[426820228,1782898239000,-500.0,0.00028395,2]
[426820221,1782898239000,-500.0,0.00028395,2]
[426820222,1782898239000,-421.81501584,0.00028395,2]
[426820233,1782898239000,-500.0,0.00028395,2]
[426820226,1782898239000,-500.0,0.00028395,2]
[426820230,1782898239000,-500.0,0.00028395,2]
[426820232,1782898239000,-500.0,0.00028395,2]
[426820217,1782898239000,-500.0,0.00028395,2]
[426820237,1782898239000,-446.0,0.00028497,2]
[426820224,1782898239000,-500.0,0.00028395,2]
[426820211,1782898239000,-290.78025269,0.00028395,2]
[426820206,1782898239000,-500.0,0.00028395,2]
[426820213,1782898239000,-209.21974731,0.00028395,2]
[426820208,1782898239000,-500.0,0.00028395,2]
[426820210,1782898239000,-500.0,0.00028395,2]
[426820198,1782898239000,-319.40406211,0.00028395,2]
[426820200,1782898239000,-500.0,0.00028395,2]
[426820196,1782898239000,-414.36959011,0.0002832,2]
[426820204,1782898239000,-500.0,0.00028395,2]
[426820202,1782898239000,-500.0,0.00028395,2]
[426820235,1782898239000,-300.0,0.00028395,2]
[426820194,1782898239000,-362.57339135,0.0002831,2]
[426820193,1782898239000,-472.41813262,0.0002831,2]
[426820215,1782898239000,-500.0,0.00028395,2]
[426820239,1782898239000,-186.0,0.00028497,2]
[426820272,1782898239000,-246082.3537462,0.000295,2]
[426820251,1782898239000,-500.0,0.00028874,2]
[426820273,1782898239000,-199820.79886926,0.000295,2]
[426820270,1782898239000,-154.04,0.0002949,3]
[426820271,1782898239000,-462.16,0.0002949,3]
[426820267,1782898239000,-500.0,0.00029422,2]
[426820269,1782898239000,-839.854458,0.00029448,2]
[426820268,1782898239000,-160.0,0.00029428,3]
[426820265,1782898239000,-864.34701542,0.0002924,2]
[426820249,1782898239000,-700.0,0.00028679,2]
[426820264,1782898239000,-500.0,0.00029148,2]
[426820263,1782898239000,-200.82,0.000291,2]
[426820257,1782898239000,-750.0,0.00029,2]
[426820260,1782898239000,-460.21052248,0.00029048,2]
[426820266,1782898239000,-154778.99919624,0.000294,2]
[426820261,1782898239000,-1000.0,0.000291,2]
[426820262,1782898239000,-521.0,0.000291,2]
[426820241,1782898239000,-1422.0,0.00028497,2]
[426820247,1782898239000,-1000.0,0.00028678,2]
[426820245,1782898239000,-164.15543101,0.000286,2]
[426820252,1782898239000,-237.63872602,0.000289,2]
[426820243,1782898239000,-500.0,0.000286,2]
[426820254,1782898239000,-696.243264,0.00028997,2]
[426820256,1782898239000,-32164.0,0.00029,7]
[426820258,1782898239000,-367.0,0.00029,2]
[426820259,1782898239000,-280.0,0.00029,2]
[426820255,1782898239000,-20000.0,0.00029,2]
[426820325,1782898244000,-498.34449091,0.000286,2]
[426820324,1782898244000,-1267.47594391,0.000281,2]
[426820323,1782898244000,-1.99171809,0.000281,2]
[426820337,1782898247000,-6677.37678446,0.000295,2]
[426820335,1782898247000,-501.65550909,0.000286,2]
[426820336,1782898247000,-1000.0,0.000291,2]
[426820343,1782898368000,-227.372609,0.00026611,2]
[426820370,1782899328000,630.75284428,0.0001,2]
[426820380,1782899363000,-10388.58856672,0.000158,2]
[426820449,1782899441000,-312.35,0.00015642,2]
[426820451,1782899441000,-130.27119357,0.0002455,2]
[426820450,1782899441000,-1489.36891349,0.00015642,2]
[426820494,1782899447000,-1353.07224398,0.00028447,2]
[426820474,1782899447000,-2230.69998992,0.0002455,2]
[426820478,1782899447000,-1310.96031803,0.00027512,2]
[426820476,1782899447000,-3981.1818207,0.0002465,2]
[426820477,1782899447000,-646.80503207,0.00026136,2]
[426820479,1782899447000,-227.372609,0.00027751,2]
[426820483,1782899447000,-200.22973101,0.00027866,2]
[426820485,1782899447000,-616.58938192,0.00027866,2]
[426820482,1782899447000,-200.22973101,0.00027866,2]
[426820481,1782899447000,-200.22973101,0.00027866,2]
[426820475,1782899447000,-3394.08217949,0.0002455,2]
[426820480,1782899447000,-200.22973101,0.00027866,2]
[426820484,1782899447000,-200.22973101,0.00027866,2]
[426820487,1782899447000,-218.22616403,0.000279,3]
[426820490,1782899447000,-172.0,0.00028,2]
[426820488,1782899447000,-153.0,0.00028,2]
[426820491,1782899447000,-200.22973101,0.0002814,2]
[426820489,1782899447000,-344.0,0.00028,2]
[426820492,1782899447000,-200.22973101,0.00028414,2]
[426820493,1782899447000,-851.35557945,0.00028447,2]
[426820486,1782899447000,-196.50986484,0.000279,2]
[426820508,1782900191000,153.573428,0.00030137,120]
[426820559,1782900631000,-760.60498415,0.00028,2]
[426820553,1782900631000,-339.0,0.00028,2]
[426820555,1782900631000,-151.0,0.00028,2]
[426820557,1782900631000,-152.0,0.00028,2]
[426820549,1782900631000,-153.11685313,0.00027866,2]
[426820547,1782900631000,-153.11685313,0.00027866,2]
[426820540,1782900631000,-172.51,0.00016438,2]
[426820544,1782900631000,-153.11685313,0.00027866,2]
[426820545,1782900631000,-153.11685313,0.00027866,2]
[426820560,1782900631000,-154.0,0.00028,2]
[426820542,1782900631000,-220.33,0.00024241,2]
[426820569,1782900631000,-157.87416733,0.00028447,2]
[426820585,1782900631000,-174.71591493,0.00028687,2]
[426820551,1782900631000,-153.11685313,0.00027866,2]
[426820562,1782900631000,-153.11685313,0.0002814,2]
[426820587,1782900631000,-393.50772709,0.00028687,2]
[426820581,1782900631000,-191.75582411,0.00028687,2]
[426820577,1782900631000,-376.324,0.00028447,2]
[426820579,1782900631000,-505.7642,0.000286,3]
[426820583,1782900631000,-286.19028505,0.00028687,2]
[426820573,1782900631000,-1845.0,0.00028447,2]
[426820566,1782900631000,-150.334,0.00028447,2]
[426820567,1782900631000,-197.412,0.00028447,2]
[426820564,1782900631000,-153.11685313,0.00028414,2]
[426820571,1782900631000,-1472.80983267,0.00028447,2]
[426820575,1782900631000,-186.0,0.00028447,2]
[426820609,1782900632000,-289.59064965,0.00028687,2]
[426820593,1782900632000,-500.0,0.00028687,2]
[426820591,1782900632000,-600.0,0.00028687,2]
[426820595,1782900632000,-396.1673527,0.00028687,2]
[426820589,1782900632000,-500.0,0.00028687,2]
[426820597,1782900632000,-103.8326473,0.00028687,2]
[426820613,1782900632000,-500.0,0.00028687,2]
[426820614,1782900632000,-391.36525277,0.00028687,2]
[426820611,1782900632000,-210.40935035,0.00028687,2]
[426820616,1782900632000,-108.63474723,0.00028687,2]
[426820599,1782900632000,-500.0,0.00028687,2]
[426820600,1782900632000,-500.0,0.00028687,2]
[426820603,1782900632000,-500.0,0.00028687,2]
[426820605,1782900632000,-617.04526715,0.00028687,2]
[426820618,1782900632000,-431.49888553,0.00028687,2]
[426820607,1782900632000,-500.0,0.00028687,2]
[426821089,1782900638000,-40.3329685,0.00029236,2]
[426821087,1782900638000,-152.0,0.00029,2]
[426821099,1782900638000,-5902.57415519,0.00029519,2]
[426821088,1782900638000,-593.94436878,0.00029017,2]
[426821097,1782900638000,-324.73675902,0.0002947,2]
[426821098,1782900638000,-153.11685313,0.0002951,2]
[426821083,1782900638000,-153.11685313,0.00028962,2]
[426821081,1782900638000,-11.84668996,0.0002896,2]
[426821082,1782900638000,-168.56262061,0.0002896,2]
[426821079,1782900638000,-153.11685313,0.00028688,2]
[426821085,1782900638000,-339.0,0.00029,2]
[426821084,1782900638000,-1619.59834263,0.00029,2]
[426821080,1782900638000,-227.1556278,0.0002896,2]
[426821078,1782900638000,-201.04257492,0.00028687,2]
[426821077,1782900638000,-68.50111447,0.00028687,2]
[426821086,1782900638000,-151.0,0.00029,2]
[426821094,1782900638000,-200.0,0.00029414,13]
[426821101,1782900638000,-164.0,0.00029589,5]
[426821092,1782900638000,-593.94436878,0.00029408,2]
[426821093,1782900638000,-200.0,0.00029414,13]
[426821112,1782900638000,-332.54,0.000296,2]
[426821113,1782900638000,-57600.33625275,0.000296,3]
[426821100,1782900638000,-593.94436878,0.00029542,2]
[426821111,1782900638000,-500.0,0.00029599,2]
[426821108,1782900638000,-306.17221471,0.00029599,2]
[426821109,1782900638000,-500.0,0.00029599,2]
[426821110,1782900638000,-500.0,0.00029599,2]
[426821104,1782900638000,-500.0,0.00029599,2]
[426821107,1782900638000,-500.0,0.00029599,2]
[426821103,1782900638000,-500.0,0.00029599,2]
[426821105,1782900638000,-500.0,0.00029599,2]
[426821102,1782900638000,-223.58284348,0.00029599,2]
[426821091,1782900638000,-112.78388463,0.00029236,2]
[426821096,1782900638000,-500.0,0.00029414,13]
[426821095,1782900638000,-180.2,0.00029414,13]
[426821106,1782900638000,-500.0,0.00029599,2]
[426821119,1782900640000,-64.08420456,0.00029619,2]
[426821118,1782900640000,-620.1607182,0.000296,3]
[426821117,1782900640000,-317.73995905,0.000296,3]
[426821132,1782900643000,-95.33857188,0.000291,2]
[426821138,1782900646000,-440.0,0.00029699,2]
[426821137,1782900646000,-394.79137457,0.00029619,2]
[426821140,1782900646000,-360.0,0.00029699,2]
[426821136,1782900646000,-570.06569312,0.000291,2]
[426821142,1782900646000,-426.33293231,0.000297,2]
[426821141,1782900646000,-220.0,0.00029699,2]
[426821139,1782900646000,-250.0,0.00029699,2]
[426821143,1782900646000,-2685.70744248,0.000297,2]
[426821243,1782901832000,-103.686556,0.00025732,2]
[426821247,1782901832000,-315.27841209,0.00025733,2]
[426821245,1782901832000,-279.93408999,0.00025733,2]
[426821240,1782901832000,-4001.9287731,0.00025732,2]
[426821384,1782901838000,-591.93636958,0.00026732,2]
[426821385,1782901838000,-591.93636958,0.00026732,2]
[426821387,1782901838000,-591.93636958,0.00026732,2]
[426821390,1782901838000,-500.0,0.00026732,2]
[426821386,1782901838000,-591.93636958,0.00026732,2]
[426821380,1782901838000,-591.93636958,0.00026732,2]
[426821392,1782901838000,-500.0,0.00026732,2]
[426821393,1782901838000,-500.0,0.00026732,2]
[426821388,1782901838000,-591.93636958,0.00026732,2]
[426821382,1782901838000,-591.93636958,0.00026732,2]
[426821376,1782901838000,-65.13265283,0.00026732,2]
[426821377,1782901838000,-315.84790663,0.00026732,2]
[426821373,1782901838000,-504.63951822,0.00026731,2]
[426821379,1782901838000,-591.93636958,0.00026732,2]
[426821375,1782901838000,-526.80371675,0.00026732,2]
[426821374,1782901838000,-500.0,0.00026732,2]
[426821372,1782901838000,-300.0,0.00026731,2]
[426821369,1782901838000,-528.06499189,0.00025733,2]
[426821371,1782901838000,-200.0,0.00025858,2]
[426821370,1782901838000,-167.87,0.0002577,2]
[426821368,1782901838000,-356.48884776,0.00025733,2]
[426821389,1782901838000,-500.0,0.00026732,2]
[426821378,1782901838000,-591.93636958,0.00026732,2]
[426821391,1782901838000,-500.0,0.00026732,2]
[426821405,1782901838000,-500.0,0.00026732,2]
[426821396,1782901838000,-500.0,0.00026732,2]
[426821395,1782901838000,-500.0,0.00026732,2]
[426821417,1782901838000,-621.53318805,0.00026732,2]
[426821412,1782901838000,-500.0,0.00026732,2]
[426821415,1782901838000,-448.81722621,0.00026732,2]
[426821414,1782901838000,-591.93636958,0.00026732,2]
[426821413,1782901838000,-534.88511569,0.00026732,2]
[426821416,1782901838000,-500.0,0.00026732,2]
[426821409,1782901838000,-591.93636958,0.00026732,2]
[426821411,1782901838000,-591.93636958,0.00026732,2]
[426821410,1782901838000,-500.0,0.00026732,2]
[426821408,1782901838000,-500.0,0.00026732,2]
[426821418,1782901838000,-621.53318805,0.00026732,2]
[426821407,1782901838000,-591.93636958,0.00026732,2]
[426821404,1782901838000,-500.0,0.00026732,2]
[426821401,1782901838000,-500.0,0.00026732,2]
[426821402,1782901838000,-313.88990625,0.00026732,2]
[426821403,1782901838000,-186.11009375,0.00026732,2]
[426821400,1782901838000,-500.0,0.00026732,2]
[426821398,1782901838000,-500.0,0.00026732,2]
[426821399,1782901838000,-591.93636958,0.00026732,2]
[426821397,1782901838000,-500.0,0.00026732,2]
[426821394,1782901838000,-591.93636958,0.00026732,2]
[426821406,1782901838000,-500.0,0.00026732,2]
[426821420,1782901839000,-621.53318805,0.00026732,2]
[426821419,1782901839000,-621.53318805,0.00026732,2]
[426821422,1782901839000,-621.53318805,0.00026732,2]
[426821428,1782901839000,-1858.5847356,0.00026733,2]
[426821421,1782901839000,-621.53318805,0.00026732,2]
[426821423,1782901839000,-621.53318805,0.00026732,2]
[426821426,1782901839000,-720.97849814,0.00026732,2]
[426821424,1782901839000,-621.53318805,0.00026732,2]
[426821427,1782901839000,-47005.15302069,0.00026733,2]
[426821429,1782901839000,-1211.86984606,0.00026733,2]
[426821430,1782901839000,-832.13529868,0.00026733,2]
[426821425,1782901839000,-720.97849814,0.00026732,2]
[426821441,1782901840000,-1384.85711509,0.00026733,2]
[426821440,1782901840000,-1830.84823193,0.00026733,2]
[426821439,1782901840000,-910.45064582,0.00026733,2]
[426821438,1782901840000,-3123.22666124,0.00026733,2]
[426821448,1782901843000,-1406.34702,0.00026733,2]
[426821447,1782901843000,-1126.39137443,0.00026733,2]
[426821449,1782901843000,-3634.422095,0.00026733,2]
[426821450,1782901843000,-10291.69206726,0.00026733,2]
[426821451,1782901843000,-5164.7523858,0.00026885,2]
[426821452,1782901843000,-3187.0145492,0.00026985,2]
[426821458,1782901843000,-500.0,0.00027279,2]
[426821454,1782901843000,-799.3295042,0.00026985,2]
[426821460,1782901843000,-181.7729954,0.000279,2]
[426821455,1782901843000,-500.0,0.00027005,2]
[426821453,1782901843000,-2653.8385751,0.00026985,2]
[426821456,1782901843000,-167.09866344,0.00027079,2]
[426821459,1782901843000,-571.78766804,0.000279,2]
[426821457,1782901843000,-43.65264656,0.00027079,2]
[426821480,1782901846000,-153.11685313,0.00027921,2]
[426821488,1782901846000,-153.11685313,0.00028195,2]
[426821486,1782901846000,-154.89565684,0.00028,2]
[426821479,1782901846000,-153.11685313,0.00027921,2]
[426821487,1782901846000,-317.0,0.00028,2]
[426821483,1782901846000,-249.9382407,0.00027979,2]
[426821478,1782901846000,-109.44393129,0.00027921,2]
[426821482,1782901846000,-405.2294146,0.00027941,2]
[426821477,1782901846000,-43.67292184,0.00027921,2]
[426821475,1782901846000,-153.11685313,0.00027921,2]
[426821476,1782901846000,-153.11685313,0.00027921,2]
[426821474,1782901846000,-29.66376696,0.000279,2]
[426821485,1782901846000,-153.0,0.00028,2]
[426821484,1782901846000,-166.0,0.00028,2]
[426821481,1782901846000,-259.60643177,0.00027941,2]
[426821491,1782901846000,-512.834,0.00028973,2]
[426821504,1782901846000,-102414.22731377,0.00029763,2]
[426821502,1782901846000,-958.5,0.00029763,2]
[426821499,1782901846000,-200.0,0.00029562,13]
[426821489,1782901846000,-173.169425,0.00028657,2]
[426821498,1782901846000,-319.0061827,0.00029548,2]
[426821493,1782901846000,-158.0,0.00029,2]
[426821503,1782901846000,-11514.0631854,0.00029763,2]
[426821497,1782901846000,-901.14450628,0.00029412,2]
[426821500,1782901846000,-5071.20658165,0.00029763,2]
[426821494,1782901846000,-317.0,0.00029,2]
[426821501,1782901846000,-528.01737883,0.00029763,2]
[426821492,1782901846000,-186.0,0.00028973,2]
[426821495,1782901846000,-577.30979382,0.00029412,2]
[426821490,1782901846000,-420.0,0.00028907,2]
[426821496,1782901846000,-254.81870726,0.00029412,2]
[426821508,1782901968000,-508.79120294,0.00026731,2]
[426821509,1782902169000,392.0469848,0.00027702,120]
[426821511,1782902360000,163.0,0.0003,30]
[426821512,1782902406000,164.99880399,0.0003,60]
[426821517,1782902869000,292.16709451,0.0003,30]
[426821518,1782902913000,7240.08535969,7.6e-05,2]
[426821519,1782902914000,18000.00000125,0.00026,30]
[426821521,1782902920000,22372.00633556,0.00012,2]
[426821523,1782902962000,-434.67186441,0.0001958,2]
[426821522,1782902962000,-579.05584942,0.00017,2]
[426821577,1782903032000,-500.0,0.00026732,2]
[426821574,1782903032000,-251.5511874,0.00026731,2]
[426821576,1782903032000,-300.0,0.00026731,2]
[426821570,1782903032000,-248.4488126,0.00026731,2]
[426821556,1782903032000,-227.877371,0.00026619,2]
[426821564,1782903032000,-189.02659511,0.00026724,2]
[426821558,1782903032000,-60.97340489,0.00026724,2]
[426821581,1782903032000,-500.0,0.00026732,2]
[426821568,1782903032000,-184.68634759,0.00026731,2]
[426821579,1782903032000,-500.0,0.00026732,2]
[426821565,1782903032000,-315.31365241,0.00026731,2]
[426821585,1782903032000,-500.0,0.00026732,2]
[426821583,1782903032000,-514.50639282,0.00026732,2]
[426821586,1782903032000,-67.28747683,0.00026732,2]
[426821589,1782903032000,-165.3668012,0.00027242,2]
[426821588,1782903032000,-325.0,0.00027,2]
[426821590,1782903032000,-459.4515825,0.00027253,2]
[426821587,1782903032000,-432.71252317,0.00026732,2]
[426821593,1782903032000,-51.49540183,0.00027979,2]
[426821591,1782903032000,-164.39673723,0.00027397,7]
[426821592,1782903032000,-1421.5122635,0.00027702,2]
[426821584,1782903032000,-500.0,0.00026732,2]
[426821706,1782903039000,-500.0,0.00027999,2]
[426821707,1782903039000,-500.0,0.00027999,2]
[426821704,1782903039000,-500.0,0.00027999,2]
[426821703,1782903039000,-500.0,0.00027999,2]
[426821702,1782903039000,-500.0,0.00027999,2]
[426821695,1782903039000,-500.0,0.00027999,2]
[426821700,1782903039000,-500.0,0.00027999,2]
[426821701,1782903039000,-500.0,0.00027999,2]
[426821708,1782903039000,-500.0,0.00027999,2]
[426821699,1782903039000,-500.0,0.00027999,2]
[426821705,1782903039000,-500.0,0.00027999,2]
[426821710,1782903039000,-500.0,0.00027999,2]
[426821715,1782903039000,-500.0,0.00027999,2]
[426821712,1782903039000,-500.0,0.00027999,2]
[426821714,1782903039000,-500.0,0.00027999,2]
[426821713,1782903039000,-500.0,0.00027999,2]
[426821698,1782903039000,-500.0,0.00027999,2]
[426821716,1782903039000,-500.0,0.00027999,2]
[426821717,1782903039000,-191.90023139,0.00027999,2]
[426821718,1782903039000,-500.0,0.00027999,2]
[426821719,1782903039000,-500.0,0.00027999,2]
[426821721,1782903039000,-500.0,0.00027999,2]
[426821722,1782903039000,-500.0,0.00027999,2]
[426821723,1782903039000,-500.0,0.00027999,2]
[426821725,1782903039000,-500.0,0.00027999,2]
[426821711,1782903039000,-500.0,0.00027999,2]
[426821697,1782903039000,-500.0,0.00027999,2]
[426821691,1782903039000,-230.5918565,0.00027999,2]
[426821693,1782903039000,-500.0,0.00027999,2]
[426821720,1782903039000,-500.0,0.00027999,2]
[426821666,1782903039000,-169.67367817,0.00027979,2]
[426821667,1782903039000,-4519.15833754,0.00027998,2]
[426821668,1782903039000,-500.0,0.00027999,2]
[426821670,1782903039000,-500.0,0.00027999,2]
[426821671,1782903039000,-500.0,0.00027999,2]
[426821669,1782903039000,-500.0,0.00027999,2]
[426821673,1782903039000,-500.0,0.00027999,2]
[426821672,1782903039000,-500.0,0.00027999,2]
[426821675,1782903039000,-500.0,0.00027999,2]
[426821674,1782903039000,-500.0,0.00027999,2]
[426821677,1782903039000,-500.0,0.00027999,2]
[426821696,1782903039000,-500.0,0.00027999,2]
[426821676,1782903039000,-500.0,0.00027999,2]
[426821680,1782903039000,-500.0,0.00027999,2]
[426821679,1782903039000,-500.0,0.00027999,2]
[426821681,1782903039000,-500.0,0.00027999,2]
[426821684,1782903039000,-224.00459045,0.00027999,2]
[426821685,1782903039000,-500.0,0.00027999,2]
[426821682,1782903039000,-500.0,0.00027999,2]
[426821683,1782903039000,-275.99540955,0.00027999,2]
[426821686,1782903039000,-500.0,0.00027999,2]
[426821688,1782903039000,-500.0,0.00027999,2]
[426821690,1782903039000,-500.0,0.00027999,2]
[426821692,1782903039000,-500.0,0.00027999,2]
[426821694,1782903039000,-500.0,0.00027999,2]
[426821678,1782903039000,-500.0,0.00027999,2]
[426821724,1782903039000,-500.0,0.00027999,2]